fUST/lending_fUST_20250208
["ID","MTS","AMOUNT","RATE_DAILY","PERIOD"]
[352216488,1739003437802,-500.0,0.00011095,2]
[352216490,1739003437811,-500.0,0.00011095,2]
[352216492,1739003437821,-500.0,0.00011095,2]
[352216494,1739003437830,-1736.49,0.00011095,2]
[352216496,1739003437839,-1030.9,0.00011095,2]
[352216498,1739003437850,-500.0,0.00011095,2]
[352216500,1739003437860,-1004.87,0.00011095,2]
[352216502,1739003437869,-500.0,0.00011095,2]
[352216504,1739003437878,-1448.22,0.00011095,2]
[352216506,1739003437888,-500.0,0.00011095,2]
[352216508,1739003437898,-500.0,0.00011095,2]
[352216510,1739003437907,-500.0,0.00011095,2]
[352216512,1739003437918,-500.0,0.00011095,2]
[352216514,1739003437927,-500.0,0.00011095,2]
[352216516,1739003437936,-678.31,0.00011095,2]
[352216517,1739003437945,-500.0,0.00011095,2]
[352216518,1739003437955,-500.0,0.00011095,2]
[352216519,1739003437964,-500.0,0.00011095,2]
[352216521,1739003437973,-500.0,0.00011095,2]
[352216523,1739003437982,-500.0,0.00011095,2]
[352216525,1739003437991,-500.0,0.00011095,2]
[352216526,1739003438000,-500.0,0.00011095,2]
[352216527,1739003438010,-500.0,0.00011095,2]
[352216528,1739003438019,-500.0,0.00011095,2]
[352216529,1739003438028,-500.0,0.00011095,2]
[352216530,1739003438037,-550.77,0.00011095,2]
[352216531,1739003438047,-500.0,0.00011095,2]
[352216532,1739003438060,-500.0,0.00011095,2]
[352216533,1739003438069,-500.0,0.00011095,2]
[352216534,1739003438079,-3121.49,0.00011095,2]
[352216535,1739003438088,-1171.7,0.00011095,2]
[352216536,1739003438101,-6238.24,0.00011095,2]
[352216537,1739003438110,-500.0,0.00011095,2]
[352216538,1739003438119,-500.0,0.00011095,2]
[352216539,1739003438130,-500.0,0.00011095,2]
[352216540,1739003438139,-592.92,0.00011095,2]
[352216541,1739003438149,-500.0,0.00011095,2]
[352216542,1739003438159,-500.0,0.00011095,2]
[352216543,1739003438169,-500.0,0.00011095,2]
[352216544,1739003438178,-574.13831262,0.00011095,2]
[352216545,1739003438188,-500.0,0.00011095,2]
[352216546,1739003438197,-2432.89,0.00011095,2]
[352216547,1739003438207,-1350.4,0.00011095,2]
[352216548,1739003438216,-500.0,0.00011095,2]
[352216549,1739003438225,-2757.06,0.00011095,2]
[352216550,1739003438235,-546.4,0.00011095,2]
[352216551,1739003438244,-500.0,0.00011095,2]
[352216552,1739003438253,-500.0,0.00011095,2]
[352216553,1739003438262,-1469.92,0.00011095,2]
[352216554,1739003438272,-633.5,0.00011095,2]
[352216555,1739003438281,-262.71037777,0.00011095,2]
[352216556,1739003438291,-3526.39,0.00011095,2]
[352216557,1739003438300,-500.0,0.00011095,2]
[352216558,1739003438309,-652.87,0.00011095,2]
[352216559,1739003438318,-500.0,0.00011095,2]
[352216560,1739003438327,-634.06,0.00011095,2]
[352216561,1739003438336,-1155.73,0.00011095,2]
[352216562,1739003438346,-18238.96,0.00011095,2]
[352216563,1739003438355,-1198.46,0.00011095,2]
[352216564,1739003438366,-500.0,0.00011095,2]
[352216565,1739003438375,-500.0,0.00011095,2]
[352216566,1739003438384,-627.08,0.00011095,2]
[352216567,1739003438394,-1234.54,0.00011095,2]
[352216568,1739003438403,-500.0,0.00011095,2]
[352216569,1739003438413,-500.0,0.00011095,2]
[352216570,1739003438423,-500.0,0.00011095,2]
[352216571,1739003438433,-500.0,0.00011095,2]
[352216572,1739003438443,-500.0,0.00011095,2]
[352216573,1739003438452,-500.0,0.00011095,2]
[352216574,1739003438591,-262.78936139,0.00011095,2]
[352216575,1739003438600,-500.0,0.00011095,2]
[352216576,1739003438610,-971.24,0.00011095,2]
[352216577,1739003438619,-500.0,0.00011095,2]
[352216578,1739003438628,-187.7885143,0.00011095,2]
[352216579,1739003438638,-2943.05,0.00011095,2]
[352216580,1739003438647,-500.0,0.00011095,2]
[352216581,1739003438657,-1680.74,0.00011095,2]
[352216582,1739003438666,-172.29788396,0.00011132,2]
[352216583,1739003438676,-237.73394198,0.00011232,2]
[352216584,1739003438685,-500.0,0.00011232,2]
[352216585,1739003438694,-500.0,0.00011232,2]
[352216586,1739003438703,-500.0,0.00011232,2]
[352216587,1739003438713,-500.0,0.00011232,2]
[352216588,1739003438722,-500.0,0.00011232,2]
[352216589,1739003438732,-500.0,0.00011232,2]
[352216590,1739003438742,-500.0,0.00011232,2]
[352216591,1739003438751,-500.0,0.00011232,2]
[352216592,1739003438760,-500.0,0.00011232,2]
[352216593,1739003438769,-500.0,0.00011232,2]
[352216594,1739003438778,-452.79274574,0.00011232,2]
[352216595,1739003438787,-500.0,0.00011232,2]
[352216596,1739003438796,-500.0,0.00011232,2]
[352216597,1739003438806,-637.57,0.00011232,2]
[352216598,1739003438815,-500.0,0.00011232,2]
[352216599,1739003438824,-500.0,0.00011232,2]
[352216600,1739003438833,-500.0,0.00011232,2]
[352216601,1739003438843,-500.0,0.00011232,2]
[352216602,1739003438852,-500.0,0.00011232,2]
[352216603,1739003438861,-500.0,0.00011232,2]
[352216604,1739003438870,-500.0,0.00011232,2]
[352216605,1739003438879,-500.0,0.00011232,2]
[352216606,1739003438889,-500.0,0.00011232,2]
[352216607,1739003438898,-500.0,0.00011232,2]
[352216608,1739003438907,-500.0,0.00011232,2]
[352216609,1739003438916,-731.63,0.00011232,2]
[352216610,1739003438925,-500.0,0.00011232,2]
[352216611,1739003438935,-500.0,0.00011232,2]
[352216612,1739003438944,-500.0,0.00011232,2]
[352216613,1739003438954,-500.0,0.00011232,2]
[352216614,1739003438963,-276.9602839,0.00011232,2]
[352216615,1739003438972,-500.0,0.00011232,2]
[352216616,1739003438981,-194.99787331,0.00011232,2]
[352216617,1739003438990,-516.36,0.00011232,2]
[352216618,1739003438999,-620.05,0.00011232,2]
[352216619,1739003439008,-670.67,0.00011232,2]
[352216620,1739003439017,-500.0,0.00011232,2]
[352216621,1739003439026,-500.0,0.00011232,2]
[352216622,1739003439034,-500.0,0.00011232,2]
[352216623,1739003439043,-500.0,0.00011232,2]
[352216624,1739003439053,-500.0,0.00011232,2]
[352216625,1739003439066,-543.53,0.00011232,2]
[352216626,1739003439077,-500.0,0.00011232,2]
[352216627,1739003439086,-500.0,0.00011232,2]
[352216628,1739003439095,-500.0,0.00011232,2]
[352216629,1739003439106,-500.0,0.00011232,2]
[352216630,1739003439115,-500.0,0.00011232,2]
[352216631,1739003439125,-500.0,0.00011232,2]
[352216632,1739003439137,-500.0,0.00011232,2]
[352216633,1739003439146,-500.0,0.00011232,2]
[352216634,1739003439155,-500.0,0.00011232,2]
[352216635,1739003439164,-500.0,0.00011232,2]
[352216636,1739003439173,-881.38,0.00011232,2]
[352216637,1739003439182,-1212.51,0.00011232,2]
[352216638,1739003439191,-500.0,0.00011232,2]
[352216639,1739003439200,-500.0,0.00011232,2]
[352216640,1739003439210,-500.0,0.00011232,2]
[352216641,1739003439219,-1221.85,0.00011232,2]
[352216642,1739003439228,-500.0,0.00011232,2]
[352216643,1739003439237,-500.0,0.00011232,2]
[352216644,1739003439247,-500.0,0.00011232,2]
[352216645,1739003439256,-500.0,0.00011232,2]
[352216646,1739003439265,-557.62,0.00011232,2]
[352216647,1739003439275,-500.0,0.00011232,2]
[352216648,1739003439284,-500.0,0.00011232,2]
[352216649,1739003439293,-500.0,0.00011232,2]
[352216650,1739003439303,-500.0,0.00011232,2]
[352216651,1739003439312,-500.0,0.00011232,2]
[352216652,1739003439322,-500.0,0.00011232,2]
[352216653,1739003439331,-500.0,0.00011232,2]
[352216654,1739003439340,-500.0,0.00011232,2]
[352216655,1739003439350,-500.0,0.00011232,2]
[352216656,1739003439359,-500.0,0.00011232,2]
[352216657,1739003439368,-500.0,0.00011232,2]
[352216658,1739003439377,-1429.72,0.00011232,2]
[352216659,1739003439387,-500.0,0.00011232,2]
[352216660,1739003439396,-832.44,0.00011232,2]
[352216661,1739003439405,-500.0,0.00011232,2]
[352216662,1739003439415,-500.0,0.00011232,2]
[352216663,1739003439424,-500.0,0.00011232,2]
[352216664,1739003439434,-500.0,0.00011232,2]
[352216665,1739003439444,-500.0,0.00011232,2]
[352216666,1739003439453,-500.0,0.00011232,2]
[352216667,1739003439463,-500.0,0.00011232,2]
[352216668,1739003439472,-500.0,0.00011232,2]
[352216669,1739003439481,-500.0,0.00011232,2]
[352216670,1739003439490,-500.0,0.00011232,2]
[352216671,1739003439500,-653.11,0.00011232,2]
[352216672,1739003439510,-500.0,0.00011232,2]
[352216673,1739003439519,-2228.57,0.00011232,2]
[352216674,1739003439528,-500.0,0.00011232,2]
[352216675,1739003439538,-1120.77,0.00011232,2]
[352216676,1739003439547,-637.99,0.00011232,2]
[352216677,1739003439556,-2940.9,0.00011232,2]
[352216678,1739003439565,-500.0,0.00011232,2]
[352216679,1739003439574,-500.0,0.00011232,2]
[352216680,1739003439583,-615.34,0.00011232,2]
[352216681,1739003439592,-593.84,0.00011232,2]
[352216682,1739003439603,-500.0,0.00011232,2]
[352216683,1739003439613,-500.0,0.00011232,2]
[352216684,1739003439623,-1110.71,0.00011232,2]
[352216685,1739003439631,-500.0,0.00011232,2]
[352216686,1739003439641,-1325.68,0.00011232,2]
[352216687,1739003439651,-500.0,0.00011232,2]
[352216688,1739003439660,-500.0,0.00011232,2]
[352216689,1739003439669,-500.0,0.00011232,2]
[352216690,1739003439679,-2649.56,0.00011232,2]
[352216691,1739003439688,-500.0,0.00011232,2]
[352216692,1739003439697,-11100.05,0.00011232,2]
[352216693,1739003439706,-500.0,0.00011232,2]
[352216694,1739003439716,-872.15,0.00011232,2]
[352216695,1739003439725,-503.89976115,0.00011232,2]
[352216696,1739003439735,-1455.66,0.00011232,2]
[352216697,1739003439745,-500.0,0.00011232,2]
[352216698,1739003439754,-500.0,0.00011232,2]
[352216699,1739003439764,-1067.5,0.00011232,2]
[352216700,1739003439773,-3415.59,0.00011232,2]
[352216701,1739003439782,-1791.98,0.00011232,2]
[352216702,1739003439792,-500.0,0.00011232,2]
[352216703,1739003439801,-328.1730189,0.00011232,2]
[352216704,1739003439810,-38394.76,0.00011232,2]
[352216705,1739003439819,-500.0,0.00011232,2]
[352216706,1739003439828,-500.0,0.00011232,2]
[352216707,1739003439837,-1279.35,0.00011232,2]
[352216708,1739003439847,-500.0,0.00011232,2]
[352216709,1739003439856,-500.0,0.00011232,2]
[352216710,1739003439866,-500.0,0.00011232,2]
[352216711,1739003439875,-1736.49,0.00011232,2]
[352216712,1739003439884,-1030.9,0.00011232,2]
[352216713,1739003439895,-500.0,0.00011232,2]
[352216714,1739003439904,-1004.87,0.00011232,2]
[352216715,1739003439913,-500.0,0.00011232,2]
[352216716,1739003439922,-1448.22,0.00011232,2]
[352216717,1739003439931,-500.0,0.00011232,2]
[352216718,1739003439940,-500.0,0.00011232,2]
[352216719,1739003439949,-500.0,0.00011232,2]
[352216720,1739003439958,-500.0,0.00011232,2]
[352216721,1739003439967,-500.0,0.00011232,2]
[352216722,1739003439976,-678.31,0.00011232,2]
[352216723,1739003439985,-500.0,0.00011232,2]
[352216724,1739003439994,-500.0,0.00011232,2]
[352216725,1739003440003,-500.0,0.00011232,2]
[352216726,1739003440012,-500.0,0.00011232,2]
[352216727,1739003440021,-500.0,0.00011232,2]
[352216728,1739003440031,-500.0,0.00011232,2]
[352216729,1739003440043,-500.0,0.00011232,2]
[352216730,1739003440059,-500.0,0.00011232,2]
[352216731,1739003440071,-500.0,0.00011232,2]
[352216732,1739003440079,-500.0,0.00011232,2]
[352216733,1739003440088,-550.77,0.00011232,2]
[352216734,1739003440100,-500.0,0.00011232,2]
[352216735,1739003440109,-500.0,0.00011232,2]
[352216736,1739003440118,-513.05805258,0.00011232,2]
[352216737,1739003440127,-3121.49,0.00011232,2]
[352216738,1739003440136,-1171.7,0.00011232,2]
[352216739,1739003440146,-179.56919123,0.00011232,2]
[352216740,1739003440155,-6238.24,0.00011232,2]
[352216741,1739003440164,-500.0,0.00011232,2]
[352216742,1739003440174,-592.92,0.00011232,2]
[352216743,1739003440183,-500.0,0.00011232,2]
[352216744,1739003440192,-500.0,0.00011232,2]
[352216745,1739003440201,-500.0,0.00011232,2]
[352216746,1739003440211,-500.0,0.00011232,2]
[352216747,1739003440220,-2432.89,0.00011232,2]
[352216748,1739003440230,-1350.4,0.00011232,2]
[352216749,1739003440239,-2757.06,0.00011232,2]
[352216750,1739003440248,-546.4,0.00011232,2]
[352216751,1739003440258,-556.13545161,0.00011232,2]
[352216752,1739003440267,-500.0,0.00011232,2]
[352216753,1739003440276,-1469.92,0.00011232,2]
[352216754,1739003440286,-633.5,0.00011232,2]
[352216755,1739003440296,-3526.39,0.00011232,2]
[352216756,1739003440305,-500.0,0.00011232,2]
[352216757,1739003440315,-652.87,0.00011232,2]
[352216758,1739003440325,-500.0,0.00011232,2]
[352216759,1739003440334,-634.06,0.00011232,2]
[352216760,1739003440345,-1155.73,0.00011232,2]
[352216761,1739003440354,-18238.96,0.00011232,2]
[352216762,1739003440364,-1198.46,0.00011232,2]
[352216763,1739003440373,-500.0,0.00011232,2]
[352216764,1739003440382,-500.0,0.00011232,2]
[352216765,1739003440391,-627.08,0.00011232,2]
[352216766,1739003440400,-1234.54,0.00011232,2]
[352216767,1739003440409,-500.0,0.00011232,2]
[352216768,1739003440419,-500.0,0.00011232,2]
[352216769,1739003440428,-500.0,0.00011232,2]
[352216770,1739003440437,-500.0,0.00011232,2]
[352216771,1739003440447,-500.0,0.00011232,2]
[352216772,1739003440457,-500.0,0.00011232,2]
[352216773,1739003440467,-971.24,0.00011232,2]
[352216774,1739003440476,-500.0,0.00011232,2]
[352216775,1739003440485,-2943.05,0.00011232,2]
[352216776,1739003440495,-500.0,0.00011232,2]
[352216777,1739003440504,-1680.74,0.00011232,2]
[352216778,1739003440513,-172.29788396,0.00011269,2]
[352216779,1739003440522,-501.62037964,0.00011352,2]
[352216780,1739003440531,-485.36945575,0.00011369,2]
[352216781,1739003440539,-500.0,0.00011369,2]
[352216782,1739003440548,-500.0,0.00011369,2]
[352216783,1739003440558,-500.0,0.00011369,2]
[352216784,1739003440567,-500.0,0.00011369,2]
[352216785,1739003440576,-500.0,0.00011369,2]
[352216786,1739003440587,-500.0,0.00011369,2]
[352216787,1739003440596,-500.0,0.00011369,2]
[352216788,1739003440606,-500.0,0.00011369,2]
[352216789,1739003440615,-500.0,0.00011369,2]
[352216790,1739003440624,-500.0,0.00011369,2]
[352216791,1739003440633,-500.0,0.00011369,2]
[352216792,1739003440643,-637.57,0.00011369,2]
[352216793,1739003440652,-500.0,0.00011369,2]
[352216794,1739003440662,-500.0,0.00011369,2]
[352216795,1739003440671,-295.1097495,0.00011369,2]
[352216796,1739003440680,-500.0,0.00011369,2]
[352216797,1739003440689,-500.0,0.00011369,2]
[352216798,1739003440698,-500.0,0.00011369,2]
[352216799,1739003440708,-500.0,0.00011369,2]
[352216800,1739003440717,-500.0,0.00011369,2]
[352216801,1739003440726,-500.0,0.00011369,2]
[352216802,1739003440736,-500.0,0.00011369,2]
[352216803,1739003440746,-731.63,0.00011369,2]
[352216804,1739003440755,-500.0,0.00011369,2]
[352216805,1739003440765,-500.0,0.00011369,2]
[352216806,1739003440774,-397.56830328,0.00011369,2]
[352216807,1739003440783,-500.0,0.00011369,2]
[352216808,1739003440792,-500.0,0.00011369,2]
[352216809,1739003440802,-516.36,0.00011369,2]
[352216810,1739003440812,-620.05,0.00011369,2]
[352216811,1739003440829,-670.67,0.00011369,2]
[352216812,1739003440838,-500.0,0.00011369,2]
[352216813,1739003440851,-500.0,0.00011369,2]
[352216814,1739003440860,-500.0,0.00011369,2]
[352216815,1739003440870,-500.0,0.00011369,2]
[352216816,1739003440879,-500.0,0.00011369,2]
[352216817,1739003440887,-543.53,0.00011369,2]
[352216818,1739003440897,-500.0,0.00011369,2]
[352216819,1739003440907,-500.0,0.00011369,2]
[352216820,1739003440916,-500.0,0.00011369,2]
[352216821,1739003440926,-500.0,0.00011369,2]
[352216822,1739003440935,-500.0,0.00011369,2]
[352216823,1739003440945,-500.0,0.00011369,2]
[352216824,1739003440954,-500.0,0.00011369,2]
[352216825,1739003440964,-500.0,0.00011369,2]
[352216826,1739003440973,-500.0,0.00011369,2]
[352216827,1739003440982,-881.38,0.00011369,2]
[352216828,1739003440991,-1212.51,0.00011369,2]
[352216829,1739003441000,-244.7027679,0.00011369,2]
[352216830,1739003441009,-500.0,0.00011369,2]
[352216831,1739003441018,-500.0,0.00011369,2]
[352216832,1739003441027,-1221.85,0.00011369,2]
[352216833,1739003441037,-500.0,0.00011369,2]
[352216834,1739003441046,-500.0,0.00011369,2]
[352216835,1739003441060,-500.0,0.00011369,2]
[352216836,1739003441070,-500.0,0.00011369,2]
[352216837,1739003441079,-557.62,0.00011369,2]
[352216838,1739003441088,-500.0,0.00011369,2]
[352216839,1739003441100,-619.72482855,0.00011369,2]
[352216840,1739003441109,-500.0,0.00011369,2]
[352216841,1739003441118,-500.0,0.00011369,2]
[352216842,1739003441128,-500.0,0.00011369,2]
[352216843,1739003441137,-500.0,0.00011369,2]
[352216844,1739003441146,-500.0,0.00011369,2]
[352216845,1739003441155,-500.0,0.00011369,2]
[352216846,1739003441164,-500.0,0.00011369,2]
[352216847,1739003441173,-500.0,0.00011369,2]
[352216848,1739003441182,-189.63292773,0.00011369,2]
[352216849,1739003441191,-1429.72,0.00011369,2]
[352216850,1739003441200,-500.0,0.00011369,2]
[352216851,1739003441209,-832.44,0.00011369,2]
[352216852,1739003441219,-500.0,0.00011369,2]
[352216853,1739003441228,-500.0,0.00011369,2]
[352216854,1739003441237,-500.0,0.00011369,2]
[352216855,1739003441247,-500.0,0.00011369,2]
[352216856,1739003441256,-500.0,0.00011369,2]
[352216857,1739003441265,-500.0,0.00011369,2]
[352216858,1739003441274,-500.0,0.00011369,2]
[352216859,1739003441283,-500.0,0.00011369,2]
[352216860,1739003441292,-500.0,0.00011369,2]
[352216861,1739003441301,-500.0,0.00011369,2]
[352216862,1739003441311,-653.11,0.00011369,2]
[352216863,1739003441320,-500.0,0.00011369,2]
[352216864,1739003441329,-2228.57,0.00011369,2]
[352216865,1739003441339,-500.0,0.00011369,2]
[352216866,1739003441348,-1120.77,0.00011369,2]
[352216867,1739003441358,-637.99,0.00011369,2]
[352216868,1739003441367,-2940.9,0.00011369,2]
[352216869,1739003441376,-500.0,0.00011369,2]
[352216870,1739003441386,-500.0,0.00011369,2]
[352216871,1739003441395,-615.34,0.00011369,2]
[352216872,1739003441405,-593.84,0.00011369,2]
[352216873,1739003441414,-500.0,0.00011369,2]
[352216874,1739003441424,-500.0,0.00011369,2]
[352216875,1739003441441,-1110.71,0.00011369,2]
[352216876,1739003441450,-500.0,0.00011369,2]
[352216877,1739003441460,-1325.68,0.00011369,2]
[352216878,1739003441470,-500.0,0.00011369,2]
[352216879,1739003441479,-500.0,0.00011369,2]
[352216880,1739003441489,-500.0,0.00011369,2]
[352216881,1739003441498,-2649.56,0.00011369,2]
[352216882,1739003441507,-500.0,0.00011369,2]
[352216883,1739003441516,-11100.05,0.00011369,2]
[352216884,1739003441526,-500.0,0.00011369,2]
[352216885,1739003441537,-872.15,0.00011369,2]
[352216886,1739003441666,-1455.66,0.00011369,2]
[352216887,1739003441676,-500.0,0.00011369,2]
[352216888,1739003441685,-500.0,0.00011369,2]
[352216889,1739003441694,-1067.5,0.00011369,2]
[352216890,1739003441703,-3415.59,0.00011369,2]
[352216891,1739003441713,-1791.98,0.00011369,2]
[352216892,1739003441725,-500.0,0.00011369,2]
[352216893,1739003441734,-38394.76,0.00011369,2]
[352216894,1739003441744,-500.0,0.00011369,2]
[352216895,1739003441753,-500.0,0.00011369,2]
[352216896,1739003441763,-1279.35,0.00011369,2]
[352216897,1739003441773,-500.0,0.00011369,2]
[352216898,1739003441782,-500.0,0.00011369,2]
[352216899,1739003441792,-500.0,0.00011369,2]
[352216900,1739003441801,-1736.49,0.00011369,2]
[352216901,1739003441810,-1030.9,0.00011369,2]
[352216902,1739003441819,-500.0,0.00011369,2]
[352216903,1739003441828,-1004.87,0.00011369,2]
[352216904,1739003441838,-500.0,0.00011369,2]
[352216905,1739003441848,-1448.22,0.00011369,2]
[352216906,1739003441858,-500.0,0.00011369,2]
[352216907,1739003441869,-500.0,0.00011369,2]
[352216908,1739003441884,-500.0,0.00011369,2]
[352216909,1739003441897,-500.0,0.00011369,2]
[352216910,1739003441908,-500.0,0.00011369,2]
[352216911,1739003441917,-678.31,0.00011369,2]
[352216912,1739003441931,-500.0,0.00011369,2]
[352216913,1739003441941,-500.0,0.00011369,2]
[352216914,1739003441951,-500.0,0.00011369,2]
[352216915,1739003441961,-500.0,0.00011369,2]
[352216916,1739003441971,-500.0,0.00011369,2]
[352216917,1739003441982,-500.0,0.00011369,2]
[352216918,1739003441991,-500.0,0.00011369,2]
[352216919,1739003442000,-500.0,0.00011369,2]
[352216920,1739003442009,-500.0,0.00011369,2]
[352216921,1739003442019,-500.0,0.00011369,2]
[352216922,1739003442028,-550.77,0.00011369,2]
[352216923,1739003442038,-500.0,0.00011369,2]
[352216924,1739003442046,-500.0,0.00011369,2]
[352216925,1739003442060,-3121.49,0.00011369,2]
[352216926,1739003442071,-1171.7,0.00011369,2]
[352216927,1739003442081,-6238.24,0.00011369,2]
[352216928,1739003442095,-500.0,0.00011369,2]
[352216929,1739003442108,-592.92,0.00011369,2]
[352216930,1739003442117,-500.0,0.00011369,2]
[352216931,1739003442127,-500.0,0.00011369,2]
[352216932,1739003442138,-500.0,0.00011369,2]
[352216933,1739003442148,-500.0,0.00011369,2]
[352216934,1739003442157,-2432.89,0.00011369,2]
[352216935,1739003442166,-1350.4,0.00011369,2]
[352216936,1739003442176,-2757.06,0.00011369,2]
[352216937,1739003442186,-546.4,0.00011369,2]
[352216938,1739003442195,-500.0,0.00011369,2]
[352216939,1739003442204,-1469.92,0.00011369,2]
[352216940,1739003442213,-633.5,0.00011369,2]
[352216941,1739003442223,-3526.39,0.00011369,2]
[352216943,1739003442232,-500.0,0.00011369,2]
[352216945,1739003442243,-652.87,0.00011369,2]
[352216947,1739003442252,-500.0,0.00011369,2]
[352216949,1739003442262,-634.06,0.00011369,2]
[352216951,1739003442272,-1155.73,0.00011369,2]
[352216952,1739003442281,-18238.96,0.00011369,2]
[352216953,1739003442292,-1198.46,0.00011369,2]
[352216954,1739003442301,-500.0,0.00011369,2]
[352216955,1739003442311,-500.0,0.00011369,2]
[352216957,1739003442322,-627.08,0.00011369,2]
[352216959,1739003442331,-1234.54,0.00011369,2]
[352216962,1739003442341,-500.0,0.00011369,2]
[352216965,1739003442352,-500.0,0.00011369,2]
[352216968,1739003442362,-500.0,0.00011369,2]
[352216970,1739003442372,-500.0,0.00011369,2]
[352216974,1739003442382,-500.0,0.00011369,2]
[352216976,1739003442391,-500.0,0.00011369,2]
[352216977,1739003442401,-971.24,0.00011369,2]
[352216979,1739003442410,-2943.05,0.00011369,2]
[352216982,1739003442423,-500.0,0.00011369,2]
[352216983,1739003442436,-1680.74,0.00011369,2]
[352216985,1739003442448,-172.29788396,0.00011406,2]
[352216987,1739003442458,-497.60941393,0.00011415,2]
[352216990,1739003442468,-500.0,0.00011437,2]
[352216993,1739003442477,-500.0,0.00011479,2]
[352216995,1739003442488,-151.0,0.000115,2]
[352216996,1739003442497,-500.0,0.00011506,2]
[352216997,1739003442506,-500.0,0.00011506,2]
[352216999,1739003442516,-500.0,0.00011506,2]
[352217001,1739003442526,-500.0,0.00011506,2]
[352217004,1739003442536,-500.0,0.00011506,2]
[352217007,1739003442545,-500.0,0.00011506,2]
[352217009,1739003442555,-503.69824701,0.00011506,2]
[352217011,1739003442564,-500.0,0.00011506,2]
[352217013,1739003442573,-500.0,0.00011506,2]
[352217016,1739003442583,-500.0,0.00011506,2]
[352217019,1739003442592,-500.0,0.00011506,2]
[352217022,1739003442603,-637.57,0.00011506,2]
[352217025,1739003442612,-345.20026415,0.00011506,2]
[352217028,1739003442622,-500.0,0.00011506,2]
[352217030,1739003442631,-500.0,0.00011506,2]
[352217031,1739003442641,-500.0,0.00011506,2]
[352217033,1739003442651,-500.0,0.00011506,2]
[352217035,1739003442661,-500.0,0.00011506,2]
[352217037,1739003442671,-500.0,0.00011506,2]
[352217039,1739003442680,-500.0,0.00011506,2]
[352217041,1739003442690,-500.0,0.00011506,2]
[352217043,1739003442699,-731.63,0.00011506,2]
[352217044,1739003442708,-500.0,0.00011506,2]
[352217045,1739003442718,-500.0,0.00011506,2]
[352217046,1739003442727,-500.0,0.00011506,2]
[352217047,1739003442736,-500.0,0.00011506,2]
[352217049,1739003442746,-516.36,0.00011506,2]
[352217050,1739003442755,-620.05,0.00011506,2]
[352217051,1739003442763,-670.67,0.00011506,2]
[352217052,1739003442773,-500.0,0.00011506,2]
[352217053,1739003442782,-500.0,0.00011506,2]
[352217054,1739003442792,-500.0,0.00011506,2]
[352217055,1739003442801,-500.0,0.00011506,2]
[352217056,1739003442810,-500.0,0.00011506,2]
[352217057,1739003442820,-543.53,0.00011506,2]
[352217058,1739003442830,-500.0,0.00011506,2]
[352217059,1739003442840,-500.0,0.00011506,2]